Cogmind - Beta 15 @@@ ROGUE MODE // 2025.07.20 @ 20:45:51 Player: GiggleBox Result: Destroyed by H-66 Slayer with Gauss Rifle Performance ------------- Evolutions (5) 2500 Regions Visited (11) 2200 Robots Destroyed (212) 1060 Value Destroyed (9754) 9754 Prototype IDs (4) 80 Alien Tech Used (0) 0 Bonus (4695) 4695 TOTAL SCORE: 20289 Bonus ------- High Alert Combat Kills 1344 Follower Combat Kills 551 Entered Garrisons 800 Used RIF Installer 2000 Cogmind --------- Core Integrity 0/1000 Matter 200/300 Energy 100/100 System Corruption 14% Temperature Cool (0) Movement Core (50) Location -5/Factory Parts ------- > --- POWER (2) -------- (None) > --- PROPULSION (5) --- (None) > --- UTILITY (6) ------ (None) > --- WEAPON (4) ------- (None) > --- INVENTORY (5) ---- Advanced Heat Sink Large Storage Unit Small Matter Pod (19) Matter Filter Energy Filter Peak State ------------ > --- POWER ------------ Fission Core Micro Fission Core > --- PROPULSION ------- Medium Treads Medium Treads Improved Medium Treads Armored Medium Treads Wheel > --- UTILITY ---------- Large Storage Unit Advanced Targeting Computer Improved Target Analyzer Core Analyzer Relay Coupler [NC] Relay Coupler [Swarmer] > --- WEAPON ----------- Heavy Linear Accelerator Improved Remote Datajack Heavy Mace > --- INVENTORY -------- Wheel Compact Wheel Large Storage Unit Small Matter Pod Matter Filter Energy Filter [Rating: 74] Favorites ----------- Power Heavy Deuterium Engine Engine Heavy Deuterium Engine Power Core Micro Fission Core Propulsion Light Treads Treads Light Treads Wheel Wheel Hover Unit Gravmag Array Utility Core Analyzer Device Improved Cooling System Storage Large Storage Unit Processor Core Analyzer Hackware Relay Coupler [Hunter] Protection Light Armor Plating Weapon High-powered Shotgun Energy Gun Beam Rifle Energy Cannon Proton Cannon Ballistic Gun High-powered Shotgun Ballistic Cannon Advanced Assault Cannon Launcher Grenade Launcher Special Weapon Remote Datajack Impact Weapon Heavy Mace Slashing Weapon Blade Saw Build | -11 -10 -10 -8 -8 -8 -8 -7 -7 -6 -6 -5 ------- Run | Yrd Mat Sub Mat Gar Mat Gar Fac Gar Fac Gar Fac Slots Evolved 10 | . . . 4 . . . 2 . 2 . 2 Power 1 | . . . . . . . . . . . 1 Propulsion 3 | . . . 1 . . . 1 . . . 1 Utility 4 | . . . 2 . . . 1 . 1 . . Weapon 2 | . . . 1 . . . . . 1 . . Parts Attached 135 | 8 6 3 9 22 20 12 7 6 13 6 23 Power 10 | 1 . . 1 1 4 . . . . . 3 Engine 7 | 1 . . 1 1 4 . . . . . . Core 3 | . . . . . . . . . . . 3 Reactor . | . . . . . . . . . . . . Propulsion 39 | 2 2 1 1 7 7 2 3 2 3 . 9 Treads 34 | 2 2 1 1 7 7 2 3 2 3 . 4 Leg . | . . . . . . . . . . . . Wheel 3 | . . . . . . . . . . . 3 Hover 2 | . . . . . . . . . . . 2 Flight . | . . . . . . . . . . . . Utility 47 | 2 3 . 4 9 6 5 2 1 6 3 6 Device 14 | 1 . . 2 4 1 1 1 . 3 . 1 Storage 10 | 1 2 . 1 1 2 . . . 1 . 2 Processor 7 | . . . 1 1 1 . . . . 1 3 Hackware 7 | . . . . . . 3 1 1 . 2 . Protection 9 | . 1 . . 3 2 1 . . 2 . . Artifact . | . . . . . . . . . . . . Weapon 39 | 3 1 2 3 5 3 5 2 3 4 3 5 Energy Gun 5 | 2 . . 1 1 . 1 . . . . . Energy Cannon 1 | . . . . . . . . . 1 . . Ballistic Gun 18 | 1 . 1 2 3 3 2 2 1 2 1 . Ballistic Cannon 8 | . . 1 . . . 1 . 1 1 2 2 Launcher 2 | . 1 . . 1 . . . . . . . Special Weapon 2 | . . . . . . 1 . . . . 1 Impact Weapon 2 | . . . . . . . . . . . 2 Slashing Weapon 1 | . . . . . . . . 1 . . . Piercing Weapon . | . . . . . . . . . . . . Special Melee Weapon . | . . . . . . . . . . . . Unidentified Prototypes 4 | . . . . . 2 . . . 2 . . Parts Lost 69 | . 1 3 1 14 3 7 2 1 8 10 19 Power 6 | . . . 1 . . 1 . . . 1 3 Propulsion 28 | . . 1 . 5 2 3 2 . 2 5 8 Utility 13 | . . 1 . 5 . 1 . . 1 2 3 Weapon 22 | . 1 1 . 4 1 2 . 1 5 2 5 Highest Loss Streak 12 | . 1 2 1 4 2 3 2 1 3 9 12 To Critical Strikes 3 | . . . . 1 . . . . . 2 . Average Backups 14 | 1 6 11 10 13 16 16 18 19 19 19 3 Power . | . 1 1 . . . . . . . . . Propulsion 3 | . 2 4 4 4 3 4 1 1 3 1 . Utility 6 | . 1 3 . 3 7 9 10 9 10 12 1 Weapon 3 | . 1 2 4 6 4 1 4 6 4 3 1 Tool/Special . | . . . . . . . . . . . . Unused Backups 26 | . . . . 2 9 1 . 1 . 9 4 Power 4 | . . . . . 2 . . . . 2 . Propulsion 5 | . . . . . 4 . . . . . 1 Utility 12 | . . . . . 1 1 . 1 . 6 3 Weapon 5 | . . . . 2 2 . . . . 1 . Tool/Special . | . . . . . . . . . . . . Average Slot Usage (%) 94 | . 99 98 98 97 99 99 99 99 96 83 53 Engine 8 | . 14 14 9 9 9 9 7 7 5 5 . Treads 25 | . 28 27 27 26 27 26 29 29 26 22 3 Device 9 | . 9 . 17 12 9 10 8 11 10 5 . Storage 9 | . 14 14 14 12 9 9 7 7 6 5 3 Processor 6 | . . . 3 3 9 9 7 7 6 7 12 Hackware 3 | . . . . . . 2 13 10 6 7 13 Protection 5 | . 4 13 . 6 8 4 . . 5 5 . Energy Gun 5 | . 19 10 8 10 . 4 7 3 . . . Ballistic Gun 15 | . 8 13 16 16 26 18 12 15 15 2 . Ballistic Cannon 3 | . . 3 1 . . 3 1 2 8 14 2 Peak Build Rating 74 | 7 8 11 19 31 43 42 40 43 56 73 74 Average Rating 32 | 5 7 8 16 21 36 35 38 40 50 54 40 On Entrance 24 | . 7 8 7 18 31 42 33 40 41 54 16 Naked Turns 5 | . . . . . . . . . . . 5 Heaviest Build 167 | 15 31 34 38 49 87 82 65 66 133 167 69 Greatest Support 113 | 40 40 40 60 60 60 60 80 80 80 80 113 Greatest Overweight (x) 15 | 3 . 1 . . 1 3 1 1 2 5 15 Average Overweight (x) . | . . . . . . 1 . . . . . Largest Inventory Capacity 25 | 8 15 15 15 15 20 20 20 20 25 25 15 Average Capacity 17 | 7 10 15 15 15 17 20 20 20 23 23 12 Most Carried 25 | 2 11 13 15 15 20 20 20 20 22 25 7 Average Carried 14 | 1 6 11 10 13 17 18 18 19 19 20 4 Final Capacity 25 | 8 15 15 15 15 20 20 20 20 25 5 5 Final Carried 20 | 2 11 13 14 15 20 17 20 20 20 5 5 Class Distribution -------------------- 33% | Scavenger-Gunner 29% | Bothacker-Gunner 21% | Mutant 6% | Gunner 4% | Tank 3% | Scavenger-Tank Dominant Class ---------------- Mutant | -10/Materials Mutant | -10/Subcaves Gunner | -8/Materials Tank | -8/Garrison Scavenger-Gunner | -8/Materials Scavenger-Gunner | -8/Garrison Bothacker-Gunner | -7/Factory Bothacker-Gunner | -7/Garrison Bothacker-Gunner | -6/Factory Bothacker-Gunner | -6/Garrison Mutant | -5/Factory Resources | -11 -10 -10 -8 -8 -8 -8 -7 -7 -6 -6 -5 ----------- Run | Yrd Mat Sub Mat Gar Mat Gar Fac Gar Fac Gar Fac Matter Collected 7330 | 267 208 146 413 903 1398 1061 165 478 672 414 1205 Remotely 1085 | . . . . . 189 . . 360 320 52 164 Salvage Created 8171 | 19 376 142 434 1016 2272 1099 104 389 623 173 1524 Parts 429 | 5 25 4 33 51 128 52 4 22 34 4 67 Haulers Intercepted 6 | . 1 . . . 4 . . . . . 1 Recyclers Shooed 4 | . . . . . 2 . . . 1 . 1 Parts Field Recycled . | . . . . . . . . . . . . Retrieved Matter . | . . . . . . . . . . . . Parts Self-Destructed 7 | . . 7 . . . . . . . . . Prevented . | . . . . . . . . . . . . Kills | -11 -10 -10 -8 -8 -8 -8 -7 -7 -6 -6 -5 ------- Run | Yrd Mat Sub Mat Gar Mat Gar Fac Gar Fac Gar Fac Combat Hostiles Destroyed 176 | . 10 5 10 26 37 25 2 11 15 7 28 Melee 1 | . . . . . . . . . . 1 . Guns 115 | . 6 1 10 24 35 20 2 7 10 . . Cannons 41 | . . 3 . . . 5 . 3 5 6 19 AOE 18 | . 4 1 . 2 2 . . 1 . . 8 Classes Destroyed 20 | 1 5 2 3 4 3 . . . 1 . 1 Worker 7 | . . . 1 . 3 . . . . . 3 Builder 7 | . . . 1 . 1 . . . . . 5 Tunneler 1 | 1 . . . . . . . . . . . Hauler 6 | . 1 . . . 4 . . . . . 1 Recycler 5 | . . . . . 2 . . . . . 3 Mechanic 3 | . . . . . 1 . . . . . 2 Operator 2 | . 1 . 1 . . . . . . . . Watcher 4 | . 1 . . . 2 . . . 1 . . Swarmer 27 | . 3 1 3 6 6 3 . . 3 2 . Cutter 4 | . . . . 1 . . . 3 . . . Grunt 83 | . 7 . 5 7 24 14 1 6 4 3 12 Brawler 5 | . . . . 1 1 . . . 1 1 1 Duelist 4 | . . . . 2 . . . . . 1 1 Protector 1 | . . . . . . . . . . . 1 Sentry 21 | . . 1 1 8 5 2 1 2 . . 1 Specialist 3 | . . . . . . . . . 2 . 1 Hunter 7 | . . . 1 . . 2 . . 2 . 2 Programmer 16 | . . . . 1 . 5 . . 2 . 8 Heavy 3 | . . . . . 1 . . . 1 . 1 Subdweller 3 | . . 3 . . . . . . . . . Best Kill Streak 10 | 1 3 2 7 7 9 3 1 6 3 4 10 Combat Bots Only 8 | . 3 2 5 7 8 3 1 6 3 4 8 Max Kills in Single Turn 10 | 1 2 1 2 2 2 1 1 1 1 1 10 Gunslinging 1 | . . . 1 1 1 . . . . . . Exploded 8 | . 2 1 . 2 2 . . 1 . . 8 Melee 1 | . . . . . . . . . . 1 . Uniques/NPCs Destroyed . | . . . . . . . . . . . . Combat | -11 -10 -10 -8 -8 -8 -8 -7 -7 -6 -6 -5 -------- Run | Yrd Mat Sub Mat Gar Mat Gar Fac Gar Fac Gar Fac Hostile Shots Fired 1211 | . 56 42 36 133 109 157 27 71 108 178 294 Missed 377 | . 20 9 11 35 30 43 10 32 33 60 94 Hits 834 | . 36 33 25 98 79 114 17 39 75 118 200 Melee 29 | . . . . 18 . . . 8 . 3 . Projectile 805 | . 36 33 25 80 79 114 17 31 75 115 200 AOE 4 | . . . . 2 . . . . . . 2 Critical Strikes 43 | . . . 1 8 5 8 . 7 3 4 7 Part Disruptions 6 | . . . . . . 2 . . 3 . 1 Actively Blocked 2 | . . . . . . . . . 2 . . Damage Taken 13700 | . 462 670 329 1719 1132 1680 188 465 1289 1964 3802 Core 2443 | . 102 114 57 202 40 151 48 58 110 561 1000 Absorbed by Shields 5 | . . . . . . . . 5 . . . Ignored by Resistances 211 | . . . . . 154 57 . . . . . Regen/Repaired (Parts) 125 | . . . . . . . . . 125 . . Core Remaining (%) 47 | 100 . 13 . . . 18 . 84 . 21 . Volleys Fired 544 | 2 48 27 27 93 86 83 9 37 44 27 61 Largest 4 | 2 2 2 3 3 3 3 3 3 4 3 2 Hottest 140 | 90 90 70 107 140 79 116 106 121 117 117 140 Shots Fired 1308 | 4 91 43 81 257 254 221 21 73 133 69 61 Gun 1029 | 4 87 28 81 253 253 181 18 46 78 . . Cannon 251 | . . 12 . 2 . 34 . 22 54 67 60 Launcher 10 | . 4 3 . 2 1 . . . . . . Special 18 | . . . . . . 6 3 5 1 2 1 Kinetic 1066 | . 32 30 54 165 253 202 12 63 128 67 60 Thermal 193 | 2 40 10 27 90 . 13 6 5 . . . Explosive 10 | . 4 3 . 2 1 . . . . . . Electromagnetic 21 | 2 15 . . . . . . . 4 . . Robot Hit Streak 16 | 1 4 12 16 12 15 9 4 7 8 7 13 Robot Miss Streak 13 | 2 6 2 2 4 6 5 5 4 13 3 3 Penetration Max 1 | . . . . 1 1 . . . . . 1 Secondary Targets 21 | . 1 . 3 5 5 3 . 1 3 . . Max Gunslinging Chain 1 | . 1 . 1 1 1 1 . 1 1 . . Shots Hit Robots 782 | 1 45 36 58 139 155 116 14 39 82 43 54 Core Hits 384 | 1 26 9 25 50 86 55 7 22 53 15 35 Critical Kills 4 | . . . . 1 1 . . . . . 2 Critical Parts Destroyed 4 | . . . . 1 2 . . . . . 1 Critical Strikes 33 | . 2 . 5 7 3 2 . 2 . 1 11 Burn 13 | . 2 . 5 5 . . . 1 . . . Destroy 5 | . . . . 2 3 . . . . . . Blast 12 | . . . . . . 2 . 1 . 1 8 Smash 3 | . . . . . . . . . . . 3 Melee Attacks 14 | . . . . . . . . . . . 14 Impact 14 | . . . . . . . . . . . 14 Slashing . | . . . . . . . . . . . . Piercing . | . . . . . . . . . . . . Sneak Attacks 2 | . . . . . . . . . . . 2 Combat Hostiles . | . . . . . . . . . . . . Follow-up Attacks . | . . . . . . . . . . . . Damage Inflicted 20099 | 15 836 562 863 2557 3077 2061 169 683 1540 1226 6510 Guns 10003 | 15 564 196 863 2338 2916 1660 162 515 774 . . Cannons 6566 | . . 198 . . . 401 . 168 766 1220 3813 Explosions 2939 | . 263 168 . 219 151 . . . . . 2138 Melee 517 | . . . . . . . . . . . 517 Ramming 74 | . 9 . . . 10 . 7 . . 6 42 Kinetic 14579 | . 143 321 516 1548 2916 1901 119 641 1441 1220 3813 Thermal 3893 | . 300 73 347 790 . 160 43 42 . . 2138 Explosive 801 | . 263 168 . 219 151 . . . . . . Electromagnetic 235 | 15 121 . . . . . . . 99 . . Impact 517 | . . . . . . . . . . . 517 Slashing . | . . . . . . . . . . . . Piercing . | . . . . . . . . . . . . Highest Corruption 17 | . 2 2 . 9 9 17 . . . 1 14 Average Corruption 8 | . 2 2 . 6 9 11 . . . 1 9 Corruption Purged . | . . . . . . . . . . . . Corruption Blocked . | . . . . . . . . . . . . Effects 212 | . 2 9 . 46 70 69 . . . . 16 Message Errors 42 | . 1 . . 10 17 10 . . . . 4 Matter Fused 45 | . . 3 . 9 17 14 . . . . 2 Heat Flow Errors 27 | . . 1 . 7 10 8 . . . . 1 Energy Discharges 17 | . 1 2 . 4 2 7 . . . . 1 Parts Rejected 4 | . . . . . 2 1 . . . . 1 Parts Fused 6 | . . . . 2 1 3 . . . . . Data Loss (minor) 32 | . . 2 . 5 9 12 . . . . 4 Data Loss (major) 11 | . . . . 2 4 3 . . . . 2 Misfires 14 | . . . . 4 3 7 . . . . . Alerts 5 | . . 1 . 1 2 1 . . . . . Weapon Failures 9 | . . . . 2 3 3 . . . . 1 Overload Shots . | . . . . . . . . . . . . Overflow Damage 1046 | . . . . . . 5 . . 86 9 946 Projectiles 466 | . . . . . . 5 . . 86 9 366 Explosions 494 | . . . . . . . . . . . 494 Melee 86 | . . . . . . . . . . . 86 Knockbacks 42 | . . 1 . . . 1 . 1 6 12 21 Impact 2 | . . . . . . . . . . . 2 Kinetic 36 | . . 1 . . . 1 . 1 6 11 16 Secondary 4 | . . . . . . . . . . 1 3 Self-Inflicted Damage 248 | . 31 . . . . . . . . . 217 Shots 3 | . 1 . . . . . . . . . 2 Rammed 12 | 1 3 . . . 3 . 1 . . . 4 Targets Rammed 13 | 1 3 . . . 3 . 1 . . 1 4 Kicked . | . . . . . . . . . . . . Crushed 1 | . . . . . . . . . . 1 . Highest Temperature 322 | 60 236 129 9 322 259 262 . 5 260 36 252 Average Temperature 66 | 30 60 75 4 51 67 104 . 3 70 12 92 Received Heat Transfer 3087 | . 219 63 108 378 495 486 93 162 117 318 648 Effects 2 | . . . . . . . . . 2 . . Interference 2 | . . . . . . . . . 2 . . Siege Activations . | . . . . . . . . . . . . Martial Activations . | . . . . . . . . . . . . Shielding Activations . | . . . . . . . . . . . . Robots Disrupted . | . . . . . . . . . . . . Combat Hostiles . | . . . . . . . . . . . . Robots Corrupted 2 | . . . . . . . . . . . 2 Combat Hostiles 1 | . . . . . . . . . . . 1 Parts Fried 1 | . . . . . . . . . 1 . . Impact Corruptions 3 | . . . . . . . . . . . 3 Robots Melted . | . . . . . . . . . . . . Combat Hostiles . | . . . . . . . . . . . . Parts Melted 16 | . 2 1 1 11 . . . 1 . . . Heat Transferred 6713 | . 1036 222 1258 2368 . 333 111 185 . . 1200 Parts Sabotaged . | . . . . . . . . . . . . Parts Stolen . | . . . . . . . . . . . . Parts Stripped . | . . . . . . . . . . . . Power Chain Reactions . | . . . . . . . . . . . . Alert | -11 -10 -10 -8 -8 -8 -8 -7 -7 -6 -6 -5 ------- Run | Yrd Mat Sub Mat Gar Mat Gar Fac Gar Fac Gar Fac Maximum Alert Level 4 | . . . . 4 3 4 3 2 1 . 2 Low Security (%) 41 | 100 100 . 100 9 . . . . 86 100 92 Level 1 9 | . . . . 12 16 . . 51 13 . 6 Level 2 28 | . . . . 36 83 19 78 48 . . 1 Level 3 12 | . . . . 29 . 44 21 . . . . Level 4 7 | . . . . 12 . 35 . . . . . Level 5 . | . . . . . . . . . . . . High Security . | . . . . . . . . . . . . Max Security . | . . . . . . . . . . . . Peak Influence 1419 | 5 112 . 151 1151 700 1419 744 627 329 186 474 Initial 744 | . . . . 88 560 453 744 372 329 . 86 Average 418 | . 21 . 36 673 477 992 635 448 93 106 78 Influence Increases 6031 | 5 323 40 263 1283 1154 1056 50 305 423 266 863 Destroy 0b10 Robot/C 3760 | . 200 40 200 720 800 560 40 220 300 140 540 Destroy 0b10 Robot/NC 190 | 5 15 . 15 . 70 . . . 5 5 75 Destroy Leader 552 | . 44 . 40 30 184 40 10 20 72 . 112 Allied During Kill 87 | . . . . 58 13 6 . 10 . . . Successful Hack 126 | . 42 . 7 35 9 . . . 33 . . Disable Machine 90 | . . . . . 15 15 . . . . 60 Anti-Garrison Action 800 | . . . . 350 . 350 . 50 . 50 . Destroy Structure 231 | . 22 . 1 75 18 10 . 5 13 11 76 Partial Spotted 30 | . . . . 15 . . . . . 15 . Lose Combat Pursuer 165 | . . . . . 45 75 . . . 45 . Influence Decreases 5603 | 5 323 40 127 268 1608 334 937 210 1050 100 601 Entered New Map 2096 | . . . . 48 591 244 675 160 298 . 80 Time Decay 2192 | 5 293 32 117 . 607 . 222 . 575 . 341 Lost Part 658 | . 10 8 10 140 30 70 20 10 80 100 180 Lost Ally 300 | . . . . 80 80 20 20 40 60 . . Purge Threat 357 | . 20 . . . 300 . . . 37 . . Squads Dispatched 20 | . 2 . 2 . 7 . . . 5 . 4 Investigation 3 | . 1 . . . 2 . . . . . . Extermination 4 | . . . . . . . . . 3 . 1 Reinforcement 8 | . 1 . 1 . 3 . . . 2 . 1 Assault 4 | . . . . . 2 . . . . . 2 Garrison 1 | . . . 1 . . . . . . . . Intercept . | . . . . . . . . . . . . Searches Triggered . | . . . . . . . . . . . . Construction Impeded . | . . . . . . . . . . . . Haulers Reinforced . | . . . . . . . . . . . . Active Scanning Responses . | . . . . . . . . . . . . Cargo Convoy Interrupts 2 | . . . . . . . . . 1 . 1 Stealth | -11 -10 -10 -8 -8 -8 -8 -7 -7 -6 -6 -5 --------- Run | Yrd Mat Sub Mat Gar Mat Gar Fac Gar Fac Gar Fac Distress Signals 13 | . 2 . 3 . 7 . . . 1 . . Communications Jammed 48 | . . . . . . . . . 16 . 32 Distress Signals 48 | . . . . . . . . . 16 . 32 Times Spotted 261 | . 21 5 18 39 51 29 4 15 20 18 41 Peak Tracking Total 15 | . 4 2 5 6 5 7 2 4 4 11 15 Tactical Retreats 7 | . . . . . 3 2 . . . 2 . Traps | -11 -10 -10 -8 -8 -8 -8 -7 -7 -6 -6 -5 ------- Run | Yrd Mat Sub Mat Gar Mat Gar Fac Gar Fac Gar Fac Traps Triggered 19 | . 3 . . 2 1 6 . 1 . 5 1 Indirectly . | . . . . . . . . . . . . Trap Hack Attempts . | . . . . . . . . . . . . Triggered . | . . . . . . . . . . . . Disarmed . | . . . . . . . . . . . . Reprogrammed . | . . . . . . . . . . . . Reused . | . . . . . . . . . . . . Traps Extracted . | . . . . . . . . . . . . Installed . | . . . . . . . . . . . . Triggered . | . . . . . . . . . . . . Machines | -11 -10 -10 -8 -8 -8 -8 -7 -7 -6 -6 -5 ---------- Run | Yrd Mat Sub Mat Gar Mat Gar Fac Gar Fac Gar Fac Machines Disabled 14 | . . . . 3 1 4 . 1 . 1 4 Max in Single Turn 3 | . . . . 1 1 1 . 1 . 1 3 Garrison Access 1 | . . . . . . . . . . . 1 Garrison Relay 8 | . . . . 3 . 3 . 1 . 1 . Machines Repaired . | . . . . . . . . . . . . Machines Dismantled . | . . . . . . . . . . . . Machines Sabotaged . | . . . . . . . . . . . . Overloaded Fab Kills . | . . . . . . . . . . . . Hacking | -11 -10 -10 -8 -8 -8 -8 -7 -7 -6 -6 -5 --------- Run | Yrd Mat Sub Mat Gar Mat Gar Fac Gar Fac Gar Fac Machines Accessed 32 | . 7 . 3 3 7 1 1 . 8 . 2 Terminals 22 | . 7 . 2 3 6 1 . . 3 . . Fabricators 3 | . . . . . . . . . 2 . 1 Repair Stations 2 | . . . . . . . . . 2 . . Recycling Units 1 | . . . . . . . . . . . 1 Scanalyzers . | . . . . . . . . . . . . Garrison Access 4 | . . . 1 . 1 . 1 . 1 . . Total Hacks 92 | . 21 . 8 5 27 1 1 . 24 . 5 Successful 49 | . 14 . 5 3 11 . 1 . 14 . 1 Failed 43 | . 7 . 3 2 16 1 . . 10 . 4 Catastrophic 5 | . 1 . . . 2 1 . . 1 . . Database Lockouts . | . . . . . . . . . . . . Manual 45 | . 15 . 7 . 18 . . . 5 . . Terminals 69 | . 21 . 7 5 24 1 . . 11 . . Fabricators 7 | . . . . . . . . . 4 . 3 Repair Stations 8 | . . . . . . . . . 8 . . Recycling Units 2 | . . . . . . . . . . . 2 Scanalyzers . | . . . . . . . . . . . . Garrison Access 6 | . . . 1 . 3 . 1 . 1 . . Terminal Hacks 16 | . 6 . . 3 4 . . . 3 . . Robot Analysis 4 | . 3 . . . 1 . . . . . . Open Door 1 | . . . . 1 . . . . . . . Emergency Access Points 1 | . . . . 1 . . . . . . . Terminal Index 1 | . 1 . . . . . . . . . . Unreport Threat 4 | . 1 . . . 2 . . . 1 . . Locate Traps 2 | . 1 . . . 1 . . . . . . Zone Layout 2 | . . . . . . . . . 2 . . Patrol Navigation 1 | . . . . 1 . . . . . . . Fabricator Hacks 2 | . . . . . . . . . 1 . 1 Network Status 1 | . . . . . . . . . . . 1 Build 1 | . . . . . . . . . 1 . . Repair Station Hacks 6 | . . . . . . . . . 6 . . Scan Component 3 | . . . . . . . . . 3 . . Repair 3 | . . . . . . . . . 3 . . Recycling Unit Hacks . | . . . . . . . . . . . . Scanalyzer . | . . . . . . . . . . . . Garrison Access Hacks 4 | . . . 1 . 1 . 1 . 1 . . Unlock Access 4 | . . . 1 . 1 . 1 . 1 . . Unauthorized Hacks 21 | . 8 . 4 . 6 . . . 3 . . Terminals 21 | . 8 . 4 . 6 . . . 3 . . Botnet 7 | . 2 . 2 . 1 . . . 2 . . Operators 2 | . 1 . . . . . . . 1 . . Skim 12 | . 5 . 2 . 5 . . . . . . Fabricators . | . . . . . . . . . . . . Repair Stations . | . . . . . . . . . . . . Recycling Units . | . . . . . . . . . . . . Scanalyzers . | . . . . . . . . . . . . Garrison Access . | . . . . . . . . . . . . Data Cores Recovered 1 | . . . 1 . . . . . . . . Used 1 | . . . 1 . . . . . . . . Hacking Detections 25 | . 6 . 2 2 7 1 . . 5 . 2 Full Trace Events 2 | . . . 1 . 1 . . . . . . Feedback Events . | . . . . . . . . . . . . Feedback Blocked . | . . . . . . . . . . . . Robot Schematics Acquired . | . . . . . . . . . . . . Robots Built 4 | . . . . . . . . . 4 . . Authchips . | . . . . . . . . . . . . Time 134 | . . . . . . . . . 134 . . Total Robot Build Rating 16 | . . . . . . . . . 16 . . Part Schematics Acquired . | . . . . . . . . . . . . Parts Built . | . . . . . . . . . . . . Authchips . | . . . . . . . . . . . . Time . | . . . . . . . . . . . . Total Part Build Rating . | . . . . . . . . . . . . Parts Repaired 3 | . . . . . . . . . 3 . . Time 158 | . . . . . . . . . 158 . . Parts Recycled . | . . . . . . . . . . . . Recycled Matter . | . . . . . . . . . . . . Retrieved Matter . | . . . . . . . . . . . . Retrieved Components . | . . . . . . . . . . . . Parts Scanalyzed . | . . . . . . . . . . . . Part Schematics Acquired . | . . . . . . . . . . . . Parts Damaged . | . . . . . . . . . . . . Bothacking | -11 -10 -10 -8 -8 -8 -8 -7 -7 -6 -6 -5 ------------ Run | Yrd Mat Sub Mat Gar Mat Gar Fac Gar Fac Gar Fac Used RIF Installer 4 | . . . . 1 . 2 . 1 . . . Signal Jammer 1 | . . . . . . 1 . . . . . Zone Cloak 1 | . . . . . . . . 1 . . . Program Shield 1 | . . . . . . 1 . . . . . Robots Hacked 7 | . . . . . . 1 2 3 . 1 . Non-combat . | . . . . . . . . . . . . Combat 7 | . . . . . . 1 2 3 . 1 . Robot Hacks Applied 9 | . . . . . . 3 2 3 . 1 . overload_power 1 | . . . . . . . . 1 . . . amplify_resonance 2 | . . . . . . . 1 . . 1 . reboot_system 2 | . . . . . . 2 . . . . . formatsys_high 4 | . . . . . . 1 1 2 . . . Relay Couplers Released 38 | . . . . 15 . 15 . 3 . 4 1 Machine Destruction 38 | . . . . 15 . 15 . 3 . 4 1 Attached 7 | . . . . . . 3 1 1 . 2 . Fabnet Peak Effective % . | . . . . . . . . . . . . Robots Rewired 12 | . . . . 9 . 3 . . . . . Allies Hacked . | . . . . . . . . . . . . Hacks Repelled . | . . . . . . . . . . . . Allies | -11 -10 -10 -8 -8 -8 -8 -7 -7 -6 -6 -5 -------- Run | Yrd Mat Sub Mat Gar Mat Gar Fac Gar Fac Gar Fac Total Allies 20 | . . . . 9 . 4 1 2 4 . . Largest Group 4 | . . . . 4 4 3 1 2 4 . . Highest-Rated Group 120 | . . . . 120 50 48 16 64 48 . . Highest-Rated Ally 40 | . . . . 40 15 16 16 32 12 . . Total Orders . | . . . . . . . . . . . . Ally Attacks 106 | . . . . 53 28 14 . 3 8 . . Total Damage 1927 | . . . . 1013 531 192 . 148 43 . . Kills 18 | . . . . 10 4 3 . . 1 . . Allies Corrupted . | . . . . . . . . . . . . Allies Melted . | . . . . . . . . . . . . Intel | -11 -10 -10 -8 -8 -8 -8 -7 -7 -6 -6 -5 ------- Run | Yrd Mat Sub Mat Gar Mat Gar Fac Gar Fac Gar Fac Active Infowar (turns) 2786 | 42 891 . 405 189 . . 97 115 1047 . . Seismic 1527 | 42 891 . 405 189 . . . . . . . Jamming 1259 | . . . . . . . 97 115 1047 . . Robot Analysis Total 4 | . 3 . . . 1 . . . . . . Derelict Logs Recovered 1 | . . 1 . . . . . . . . . Drone Launches . | . . . . . . . . . . . . Drone Recoveries . | . . . . . . . . . . . . Exploration | -11 -10 -10 -8 -8 -8 -8 -7 -7 -6 -6 -5 ------------- Run | Yrd Mat Sub Mat Gar Mat Gar Fac Gar Fac Gar Fac Turns Passed 12910 | 107 1261 680 408 2068 1979 1872 461 584 1989 555 946 Spaces Moved 5956 | 55 638 373 184 999 813 652 249 285 781 212 715 Core 448 | 8 . . . . . . . . . 58 382 Treads 5208 | 47 638 373 184 999 813 652 249 285 781 154 33 Legs . | . . . . . . . . . . . . Wheels 150 | . . . . . . . . . . . 150 Hover 150 | . . . . . . . . . . . 150 Flight . | . . . . . . . . . . . . Fastest Speed 50 | 50 160 160 160 160 160 240 160 160 160 50 50 Average Speed 174 | 156 160 160 160 160 206 243 160 160 204 195 88 Slowest Speed 800 | 200 160 240 160 160 246 400 240 240 323 570 800 Overloaded Moves . | . . . . . . . . . . . . Propulsion Burnouts . | . . . . . . . . . . . . Robots Hopped . | . . . . . . . . . . . . Potential Cave-ins . | . . . . . . . . . . . . Cave-ins Triggered . | . . . . . . . . . . . . Exploration Rate (%) 39 | 4 98 25 23 93 80 43 8 36 20 31 16 Regions Visited 11 Branch Regions 1 Pre-discovered Areas 1 | . 1 . . . . . . . . . . Known Exits Taken 5 | . 1 . 1 . 1 . 1 . 1 . . Unknown Exits Taken 2 | 1 . 1 . . . . . . . . . Scrap Searched . | . . . . . . . . . . . . Spaces Dug 5 | . . . . . . . . . 5 . . Terrain Destroyed 131 | . 39 5 . 5 16 . . . 9 1 56 Melee . | . . . . . . . . . . . . Projectile 26 | . . . . . 4 . . . 9 1 12 AOE 105 | . 39 5 . 5 12 . . . . . 44 Terrain Rammed . | . . . . . . . . . . . . Walls Destroyed . | . . . . . . . . . . . . Machines Disabled . | . . . . . . . . . . . . Actions | -11 -10 -10 -8 -8 -8 -8 -7 -7 -6 -6 -5 --------- Run | Yrd Mat Sub Mat Gar Mat Gar Fac Gar Fac Gar Fac Total 7481 | 67 789 413 239 1282 980 791 291 346 1078 298 907 Wait 425 | . 75 7 9 31 15 2 17 . 210 2 57 Move 5943 | 54 637 372 183 997 813 651 248 283 780 210 715 Hop . | . . . . . . . . . . . . Pick Up 99 | 2 10 3 7 20 14 8 5 2 9 9 10 Fast Attach 43 | 7 1 . . 3 5 1 1 4 2 2 17 Attach 64 | . 1 1 7 13 3 7 3 1 12 5 11 Detach 12 | . . . . . . . . . 4 3 5 Swap 118 | 1 10 3 6 15 22 13 7 15 13 5 8 Drop 56 | . 4 . . 9 19 2 . 2 4 11 5 Fire 544 | 2 48 27 27 93 86 83 9 37 44 27 61 Melee 14 | . . . . . . . . . . . 14 Ram 4 | . . . . . . . . . . . 4 Kick . | . . . . . . . . . . . . Crush 9 | 1 3 . . . 3 . 1 . . 1 . Escape Stasis 35 | . . . . . . 10 . 2 . 23 . Rewire 115 | . . . . 101 . 14 . . . . . Trap . | . . . . . . . . . . . . Miscellaneous . | . . . . . . . . . . . . Route ------- -11/Scrapyard -10/Materials (discovered 6 exits: *Mat x3 / *Min x2 / *Sub) -10/Subcaves (discovered 2 exits: *Mat / Rec) -8/Materials (discovered 2 exits: Fac / Gar) -8/Garrison (discovered 3 exits: *Mat x3) -8/Materials (discovered 5 exits: *Fac x3 / [*Sto] / Gar) -8/Garrison -7/Factory (discovered 2 exits: [*Low] / Gar) -7/Garrison -6/Factory (discovered 2 exits: *Fac / Gar) -6/Garrison -5/Factory (discovered 1 exit: [*Upp]) History --------- Turn | Location | Event 26 | -11/Scrapyard | Discovered new exit (range 15) 108 | -11/Scrapyard | Entered Materials 154 | -10/Materials | Discovered new exit (range 15) 303 | -10/Materials | Build established: Mutant 502 | -10/Materials | Discovered new exit (range 11) 615 | -10/Materials | Identified exit to Mines 615 | -10/Materials | Identified exit to Materials 737 | -10/Materials | Learned Storage security intel 854 | -10/Materials | Learned 4 Recycling zone layouts 950 | -10/Materials | Learned Storage emergency access door positions 1015 | -10/Materials | Identified exit to Subcaves 1369 | -10/Materials | Entered Subcaves 1370 | -10/Subcaves | Approached by a straggling Scientist 1370 | -10/Subcaves | Identified exit to Recycling 1478 | -10/Subcaves | Learned 2 Materials zone layouts 1614 | -10/Subcaves | Core integrity fell below 50% 1781 | -10/Subcaves | A swath of the cavern ceiling suddenly collapsed 1798 | -10/Subcaves | Shifting Twisted Machinery released Barrage Gun 1847 | -10/Subcaves | Shifting Twisted Machinery released Battle Cannon 1922 | -10/Subcaves | Discovered new exit (range 11) 2029 | -10/Subcaves | Core integrity fell below 20% 2049 | -10/Subcaves | Entered Materials 2049 | -8/Materials | Evolved 4 slots: Propulsion x1, Utility x2, Weapon x1 2050 | -8/Materials | Identified exit to Factory 2348 | -8/Materials | Build established: Gunner 2397 | -8/Materials | Garrison activated, responded to threat 2455 | -8/Materials | Identified exit to Garrison 2457 | -8/Materials | Entered Garrison 2537 | -8/Garrison | Triggered checkpoint 2649 | -8/Garrison | Garrison Relay disabled 2835 | -8/Garrison | Triggered checkpoint 2920 | -8/Garrison | Build established: Tank 3069 | -8/Garrison | Triggered checkpoint 3076 | -8/Garrison | Discovered new exit (range 10) 3143 | -8/Garrison | Triggered checkpoint 3200 | -8/Garrison | Lost 4 parts (1n3u) 3239 | -8/Garrison | Garrison Relay disabled 3399 | -8/Garrison | Triggered checkpoint 3429 | -8/Garrison | Triggered checkpoint 3446 | -8/Garrison | Lost 3 parts (2n1w) 3479 | -8/Garrison | Destroyed 7 combat bots 3610 | -8/Garrison | Discovered new exit (range 10) 3655 | -8/Garrison | Triggered checkpoint 3692 | -8/Garrison | Garrison Relay disabled 3752 | -8/Garrison | Installed Relay Interface Framework 3780 | -8/Garrison | Build established: Scavenger-Tank 3889 | -8/Garrison | Triggered checkpoint 4012 | -8/Garrison | Discovered new exit (range 12) 4152 | -8/Garrison | Lost 4 parts (1n1u2w) 4475 | -8/Garrison | Triggered checkpoint 4525 | -8/Garrison | Entered Materials 4525 | -8/Materials | Accompanied by 4 allies 4602 | -8/Materials | Build established: Scavenger-Gunner 5266 | -8/Materials | Discovered exit to Factory (range 12) 5665 | -8/Materials | Found Prototype Device 5943 | -8/Materials | Core integrity fell below 50% 5968 | -8/Materials | Destroyed 8 combat bots 6012 | -8/Materials | Discovered exit to Factory (range 7) 6125 | -8/Materials | First assault squad dispatched 6312 | -8/Materials | Discovered exit to Factory (range 5) 6380 | -8/Materials | Discovered new exit (range 14) 6504 | -8/Materials | Identified exit to Garrison 6504 | -8/Materials | Entered Garrison 6549 | -8/Garrison | Expanded RIF knowledge: Signal Jamming 6724 | -8/Garrison | Triggered checkpoint 6759 | -8/Garrison | Garrison Relay disabled 6866 | -8/Garrison | Triggered checkpoint 6910 | -8/Garrison | Triggered checkpoint 6963 | -8/Garrison | Garrison Relay disabled 7083 | -8/Garrison | Discovered exit to Factory (range 10) 7144 | -8/Garrison | Triggered checkpoint 7190 | -8/Garrison | Lost 3 parts (1n1u1w) 7264 | -8/Garrison | Triggered checkpoint 7274 | -8/Garrison | Garrison Relay disabled 7724 | -8/Garrison | System corruption reached 10% 7724 | -8/Garrison | P-60 Hacker assimilated allied Trooper 3b 7758 | -8/Garrison | Triggered checkpoint 7931 | -8/Garrison | P-60 Hacker assimilated allied Trooper 3d 7994 | -8/Garrison | Core integrity fell below 20% 8069 | -8/Garrison | Expanded RIF knowledge: Program Shield 8376 | -8/Garrison | Entered Factory 8376 | -7/Factory | Evolved 2 slots: Propulsion x1, Utility x1 8436 | -7/Factory | Build established: Bothacker-Gunner 8664 | -7/Factory | Discovered new exit (range 12) 8822 | -7/Factory | Identified exit to Garrison 8837 | -7/Factory | Entered Garrison 8997 | -7/Garrison | Expanded RIF knowledge: Zone Cloak 9111 | -7/Garrison | Triggered checkpoint 9143 | -7/Garrison | Triggered checkpoint 9294 | -7/Garrison | Discovered new exit (range 13) 9343 | -7/Garrison | Triggered checkpoint 9371 | -7/Garrison | Garrison Relay disabled 9421 | -7/Garrison | Entered Factory 9421 | -6/Factory | Evolved 2 slots: Utility x1, Weapon x1 9540 | -6/Factory | Repaired Hvy. Deuterium Engine 9585 | -6/Factory | Repaired Kinecellerator 9772 | -6/Factory | Repaired Imp. Deuterium Engine 10157 | -6/Factory | Fabricated S-27 Virus? 10160 | -6/Factory | Cargo convoy interrupted 10609 | -6/Factory | Discovered new exit (range 15) 10643 | -6/Factory | Lost 3 parts (1n2w) 11391 | -6/Factory | Identified exit to Garrison 11410 | -6/Factory | Entered Garrison 11452 | -6/Garrison | Triggered checkpoint 11555 | -6/Garrison | Garrison Relay disabled 11920 | -6/Garrison | Triggered checkpoint 11923 | -6/Garrison | Core integrity fell below 50% 11954 | -6/Garrison | Lost 9 parts (1p4n2u2w) 11960 | -6/Garrison | Discovered new exit (range 10) 11965 | -6/Garrison | Entered Factory 11965 | -5/Factory | Evolved 2 slots: Power x1, Propulsion x1 12017 | -5/Factory | Discovered new exit (range 16) 12217 | -5/Factory | Build established: Mutant 12493 | -5/Factory | System corruption reached 10% 12596 | -5/Factory | Core integrity fell below 50% 12868 | -5/Factory | Cargo convoy interrupted 12906 | -5/Factory | Core integrity fell below 20% 12906 | -5/Factory | Released all parts (5) 12911 | -5/Factory | Destroyed by H-66 Slayer with Gauss Rifle Last Messages --------------- 12907_ K-01 Serf collects debris. 12907_ U-05 Engineer lays Concrete. 12907_ Penetrated by Slug. 12908_ Acquired 19 matter. 12908_ U-05 Engineer builds a Wall. 12908_ U-05 Engineer lays Concrete. 12908_ K-01 Serf collects debris. 12908_ U-05 Engineer lays Concrete. 12909_ Slammed into U-05 Engineer. 12909_ U-05 Engineer lays Concrete. 12909_ K-01 Serf collects debris. 12909_ U-05 Engineer lays Concrete. 12910_ Acquired 27 matter. 12910_ Slammed into U-05 Engineer. 12910_ Destabilizing: System corrupted (+2). 12910_ Penetrated by Slug. 12910_ U-05 Engineer destroyed. 12910_ U-05 Engineer lays Concrete. 12911_ Slug penetrates Wall. 12911_ Penetrated by Slug. Map ----- +----------------------------------------------------+ | ?????????????????????????????????????????????????? | | ?????????????????????????????????????????????????? | | ?????????????????????????????????????????????????? | | ?????????????????????????????????????????????????? | | ?????????????????????????????????????????????????? | | ?????????????????????????????????????????????????? | | ?????????????????????????????????????????????????? | | ?????????????????????????????????????????????????? | | ?????????????????????????????????????????????????? | | ?????????????????????????????????????????????????? | | ?????????????????????????????????????????????????? | | ????????????????????????????#????????????????????? | | ??????????????????????????? ? ????????????????? | | ??????????????????????????? #??????????????? | | ?????????????????????????? #??????????????? | | ?????????????????????????? #??????????????? | | ??????????????????????????% #??????????????? | | ??????????????????????????% #??????????????? | | ?????????????????????????? % #??????????????? | | ????????????###############% % #??????????????? | | ????????????# ## % [ ##?????????????? | | ????????????# "" = #% ! #?????????????? | | ????????????# " *% #%=% |! ###+####??????? | | ????????????# " %= x # % !%= % ??????? | | ???????????## = u u#=!= = kk ??????? | | ???????????#; ! @%! kk ?????? | | ??????????##; *h x hg#= ??????? | | ??????????# ; uu# % ??????? | | ??????????# ; =! u # #####?????????? | | ??????????# ; % |# R #?????????????? | | ??????????# ; ### ###?????????????? | | ?????????# #; #?# % #???????????????? | | ???????????#;;; ;""##?#% #???????????????? | | ?????????? #??# +???????????????? | | ?????????###### # ###??# #???????????????? | | ??????????????# #######????# #???????????????? | | ??????????????##????######## #???????????????? | | ????????????????????# #???????????????? | | ????????????????????# #???????????????? | | ????????????????????# "" % #???????????????? | | ????????????????????# #???????????????? | | ???????????########## %#???????????????? | | ?????????? # #???????????????? | | ??????????"" """ #^ # ????? | | ???????? """ """ ! # " ????? | | ???????# """ """ # % # ????? | | ???????# # =%[ % % ?????? | | ???????# """ """ + # ?????? | | ???????# """ """ # ! # ??????? | | ???????# """ """ # "? ??????? | +----------------------------------------------------+ Best States ------------- Heat Dissipation 64 Energy Generation 28 Energy Capacity 360 Matter Stores 500 Matter Capacity 500 Sight Range 16 Terrain Scan Density 10 Jamming Range 12 EM Shielding 2 Armor Coverage 600 Resistance: KI 30 Evasion (%) 53 Targeting Accuracy 8 Target Analysis 6 Core Analysis 6 Recoil Reduction 4 Kinecelleration 30 Relay Coupler Types 3 Relay Coupler Value 61 Item Schematics ----------------- None Robot Schematics ------------------ None Fabricated ------------ S-27 Virus | x4 | -6/Factory | Preloaded Repaired ---------- Hvy. Deuterium Engine | 47% | -6/Factory Kinecellerator | 36% | -6/Factory Imp. Deuterium Engine | 62% | -6/Factory Alien Tech Used ----------------- None Achievements -------------- Assimilation Complete Challenges ------------ None Game ------ Seed MakeshiftMiningRigger Manual? 0 Play Time 01:27:23 Cumulative 135.1 hours Start 2025.07.20 @ 19:17:57 End 2025.07.20 @ 20:45:51 Sessions 1 Manual Loads 0 Difficulty Rogue Special Mode None Game No. 131 Rogue 131 Adventurer 0 Explorer 0 Win Type - Total 1 Types 1/0/0/0/0/0/0/0/0/0 Lore% 67 Gallery% 61 Achievement% 52 Wizard Run 0 Options --------- Layout 0 ASCII 0 Keyboard 1 Movement Numpad Keybinds 0 Fullscreen 1 Font 24/Terminus Map View 76x50 Zoom Use 0% Tactical HUD 1 Map Filters NONE Filters NONE Steam 1 RUN: b1b7a5ee-2c83-4071-9d54-a0ae332f3a59